bitfinex/quotes_ETHUSD_20230703
["timestamp","ask_amount","ask_price","bid_price","bid_amount"]
[1688350502479,4.65418816,1951.6,1951.2,10.51762971]
[1688350502715,5.12384,1951.7,1951.2,10.51762971]
[1688350503022,5.12404,1951.6,1951.3,10.24932]
[1688350503439,5.12404,1951.6,1951.2,2.83025971]
[1688350503440,5.12404,1951.6,1951.2,0.26773971]
[1688350503633,5.12404,1951.6,1951.2,5.39260971]
[1688350503924,10.24808,1951.6,1951.2,5.39260971]
[1688350504244,10.24808,1951.6,1951.2,0.26773971]
[1688350504394,11.99936582,1951.6,1951.2,0.26773971]
[1688350504604,14.56136582,1951.6,1951.2,0.26773971]
[1688350505323,2.013273,1952.0,1951.5,0.92]
[1688350505525,9.697853,1952.0,1951.5,5.12418]
[1688350505731,14.821033,1952.0,1951.3,8.15996836]
[1688350505888,12.80918,1951.8,1951.3,8.15996836]
[1688350506283,12.80918,1951.8,1951.3,13.28474836]
[1688350507250,12.80918,1951.8,1951.3,15.84713836]
[1688350507422,15.36796816,1951.8,1951.3,15.84713836]
[1688350508220,1.9603,1951.9,1951.5,0.917]
[1688350508546,7.136333,1952.0,1951.6,11.20028836]
[1688350508747,14.81815116,1952.0,1951.6,11.20028836]
[1688350509047,14.81815116,1952.0,1951.6,11.16494]
[1688350509246,14.81815116,1952.0,1951.7,0.01708676]
[1688350509547,14.81815116,1952.0,1951.7,0.01452538]
[1688350509751,14.81815116,1952.0,1951.6,10.24794]
[1688350510414,14.81533145,1952.0,1951.6,10.24794]
[1688350510609,14.81533145,1952.0,1951.7,0.01320596]
[1688350511003,14.81533145,1952.0,1951.7,0.01400098]
[1688350511163,14.81533145,1952.0,1951.6,5.12394]
[1688350511356,14.81533145,1952.0,1951.6,6.42739]
[1688350511720,9.69227145,1952.0,1951.6,6.42739]
[1688350512139,9.69227145,1952.0,1951.7,0.01471843]
[1688350512339,9.69227145,1952.0,1951.6,6.42739]
[1688350512608,9.69227145,1952.0,1951.7,0.01486024]
[1688350513042,9.69227145,1952.0,1951.6,6.42739]
[1688350513355,9.69227145,1952.0,1951.7,0.01377336]
[1688350513518,9.69227145,1952.0,1951.6,6.42739]
[1688350513720,14.81530145,1952.0,1951.7,0.01595585]
[1688350513957,14.81530145,1952.0,1951.6,6.42739]
[1688350514256,14.81530145,1952.0,1951.7,0.01468471]
[1688350514783,14.81530145,1952.0,1951.6,6.42739]
[1688350514924,14.81530145,1952.0,1951.7,0.0152989]
[1688350515261,14.81530145,1952.0,1951.6,6.42739]
[1688350515467,14.81530145,1952.0,1951.7,0.01418801]
[1688350517061,17.37677145,1952.0,1951.7,0.01418801]
[1688350518768,2.01045329,1952.0,1951.7,13.33724081]
[1688350518965,2.01045329,1952.0,1951.8,0.919]
[1688350519140,2.01045329,1952.0,1951.8,6.04241]
[1688350520239,2.01045329,1952.0,1951.8,5.12341]
[1688350520753,2.01045329,1952.0,1951.6,0.41425275]
[1688350520754,12.25635329,1952.0,1951.6,0.41425275]
[1688350520938,14.81782329,1952.0,1951.6,0.41425275]
[1688350521137,14.81782329,1952.0,1951.7,0.02406783]
[1688350522957,14.81782329,1952.0,1951.7,5.14775783]
[1688350523276,14.81782329,1952.0,1951.7,5.12369]
[1688350523481,14.81782329,1952.0,1951.5,0.53783716]
[1688350523482,10.24699,1951.8,1951.5,0.53783716]
[1688350523659,10.24699,1951.8,1951.5,8.12412]
[1688350524258,10.24699,1951.8,1951.5,13.24838]
[1688350524884,12.80577816,1951.8,1951.5,8.12412]
[1688350525385,12.80577816,1951.8,1951.2,30.56]
[1688350525386,2.55878816,1951.7,1951.2,30.56]
[1688350525585,2.55878816,1951.7,1951.3,8.12463]
[1688350525586,9.72767816,1951.7,1951.3,8.12463]
[1688350525756,14.85156816,1951.7,1951.3,8.12463]
[1688350526164,14.85156816,1951.7,1951.3,13.24941]
[1688350527294,9.72767816,1951.7,1951.3,13.24941]
[1688350527596,14.85156816,1951.7,1951.3,15.8118]
[1688350528469,9.72767816,1951.7,1951.3,15.8118]
[1688350528670,14.85140816,1951.7,1951.3,15.8118]
[1688350528876,14.85140816,1951.7,1951.3,13.24941]
[1688350529189,16.76849529,1951.7,1951.3,3.0]
[1688350529358,19.33035529,1951.7,1951.2,10.665928]
[1688350530101,16.76849529,1951.7,1951.2,13.228448]
[1688350530408,9.72751816,1951.7,1951.2,13.228448]
[1688350530559,9.72751816,1951.7,1951.3,0.01662537]
[1688350530964,9.72751816,1951.7,1951.4,10.24894]
[1688350531703,14.85124816,1951.7,1951.4,10.24894]
[1688350531902,9.72751816,1951.7,1951.4,10.24894]
[1688350532110,14.85124816,1951.7,1951.4,10.24894]
[1688350532470,14.85124816,1951.7,1951.5,0.00372029]
[1688350532673,16.5941971,1951.7,1951.5,0.00372029]
[1688350540578,16.5941971,1951.7,1951.3,10.2493]
[1688350540899,16.5941971,1951.7,1951.2,0.415958]
[1688350541104,10.24862,1951.5,1951.0,0.01340643]
[1688350541305,8.186852,1951.4,1951.0,8.12545]
[1688350541482,8.186852,1951.4,1951.1,5.12922148]
[1688350541483,7.16199,1951.4,1951.1,5.12922148]
[1688350541881,9.72077816,1951.4,1951.1,0.00392148]
[1688350542116,14.84546816,1951.4,1951.1,0.00392148]
[1688350542330,14.84529816,1951.4,1951.1,0.00392148]
[1688350542612,9.72060816,1951.4,1951.1,5.12917148]
[1688350542812,14.84512816,1951.4,1951.1,5.12917148]
[1688350543628,16.58585398,1951.4,1951.1,5.12917148]
[1688350544104,16.58585398,1951.4,1951.1,0.00392148]
[1688350544938,16.58585398,1951.4,1951.2,0.92]
[1688350544939,2.0373,1951.4,1951.2,0.92]
[1688350545158,1.8168,1951.6,1951.2,0.92]
[1688350545464,1.9878,1951.6,1951.2,11.43782971]
[1688350545664,1.9878,1951.6,1951.3,0.00390229]
[1688350546011,7.11181,1951.6,1951.3,0.00390229]
[1688350546457,7.11181,1951.6,1951.3,6.27285549]
[1688350546752,1.8936,1951.7,1951.3,11.39763549]
[1688350546957,5.12357,1951.8,1951.4,0.92]
[1688350546958,2.0149,1951.8,1951.4,0.92]
[1688350547106,4.57368816,1951.8,1951.4,11.16873]
[1688350547311,4.57368816,1951.8,1951.5,1.116873]
[1688350547554,4.57368816,1951.8,1951.5,1.12075611]
[1688350547865,6.9979,1951.9,1951.5,6.24495611]
[1688350548021,10.247,1951.8,1951.5,6.24495611]
[1688350549530,12.80873,1951.8,1951.5,1.12075611]
[1688350549860,12.80873,1951.8,1951.5,0.00388311]
[1688350550967,2.55878816,1951.7,1951.5,0.00388311]
[1688350551113,5.124,1951.6,1951.5,0.00388311]
[1688350551319,10.124,1951.6,1951.5,0.00388311]
[1688350554217,15.248,1951.6,1951.5,0.00388311]
[1688350554416,15.248,1951.6,1951.3,0.01351268]
[1688350554630,15.248,1951.6,1951.3,5.12478]
[1688350554921,15.248,1951.6,1951.3,10.24956]
[1688350555121,15.248,1951.6,1951.3,5.12478]
[1688350555322,10.248,1951.6,1951.3,5.12478]
[1688350555622,10.248,1951.6,1951.4,0.0038927]
[1688350555947,5.124,1951.6,1951.4,5.1283727]
[1688350557576,14.80649816,1951.7,1951.4,5.1283727]
[1688350558015,9.68258816,1951.7,1951.4,5.1283727]
[1688350558222,9.68258816,1951.7,1951.4,10.2528927]
[1688350559626,14.80645816,1951.7,1951.4,5.1283727]
[1688350559971,14.80645816,1951.7,1951.4,0.0038927]
[1688350559972,19.10513998,1951.7,1951.4,0.0038927]
[1688350560223,0.01649128,1951.6,1951.4,0.0038927]
[1688350560390,12.80730816,1951.5,1951.4,0.0038927]
[1688350560591,14.81610816,1951.5,1951.1,30.97490213]
[1688350560913,14.81610816,1951.5,1951.1,0.41490213]
[1688350560914,17.37823816,1951.5,1951.1,0.41490213]
[1688350561119,17.37823816,1951.5,1950.9,9.0437]
[1688350561321,17.37823816,1951.5,1950.9,14.58056996]
[1688350561487,14.81610816,1951.5,1951.0,0.00393107]
[1688350561693,14.81610816,1951.5,1951.1,5.12519]
[1688350561876,6.60617082,1951.4,1951.1,5.12519]
[1688350562072,9.16495898,1951.4,1951.1,5.12519]
[1688350562622,2.55878816,1951.3,1951.2,0.00391188]
[1688350562778,7.68356816,1951.3,1951.2,0.00391188]
[1688350563514,7.68356816,1951.3,1951.1,5.12525]
[1688350563676,7.68356816,1951.3,1951.0,10.25081]
[1688350563677,9.11255306,1951.3,1951.0,10.25081]
[1688350564326,9.11266306,1951.3,1951.0,10.25081]
[1688350564521,9.11266306,1951.3,1951.1,0.00392148]
[1688350564721,9.11266306,1951.3,1951.1,5.12918148]
[1688350569348,9.11266306,1951.3,1951.1,0.00392148]
[1688350569649,14.23755306,1951.3,1951.1,0.00392148]
[1688350570335,1.42375531,1951.2,1951.1,0.00392148]
[1688350570551,9.10759347,1951.2,1950.9,0.41103996]
[1688350570711,2.55878816,1951.1,1950.8,0.02403564]
[1688350570913,2.55878816,1951.1,1950.7,0.058454]
[1688350570914,10.25114,1951.0,1950.7,0.058454]
[1688350571598,10.25114,1951.0,1950.8,0.00363912]
[1688350572228,5.12557,1951.0,1950.8,0.00363912]
[1688350572620,5.0,1951.2,1950.9,1.18773971]
[1688350572794,5.0,1951.2,1950.9,5.39337971]
[1688350573303,2.0231,1951.4,1950.9,10.51920971]
[1688350573536,2.55878816,1951.3,1951.0,0.00378282]
[1688350573733,2.55878816,1951.3,1951.0,7.09963207]
[1688350576239,5.12463,1951.4,1951.0,7.09963207]
[1688350576468,5.12433,1951.5,1951.0,12.22520207]
[1688350576756,5.12457,1951.4,1951.0,12.22520207]
[1688350576900,5.12457,1951.4,1951.0,7.09963207]
[1688350577603,10.24914,1951.4,1951.0,7.09963207]
[1688350579049,15.37018816,1951.4,1951.0,7.09963207]
[1688350579345,15.37018816,1951.4,1951.0,0.00378282]
[1688350579346,10.2501,1951.2,1951.0,0.00378282]
[1688350580246,14.94092,1951.2,1951.0,0.00378282]
[1688350580545,14.94092,1951.2,1950.8,3.20456013]
[1688350580546,14.94092,1951.2,1950.8,2.28656013]
[1688350580749,14.94092,1951.2,1950.8,5.28656013]
[1688350580958,14.94092,1951.2,1950.8,10.41257013]
[1688350581506,14.94092,1951.2,1950.9,0.00379241]
[1688350581832,19.43932898,1951.2,1950.9,0.00379241]
[1688350587647,19.43932898,1951.2,1950.8,11.12587241]
[1688350587822,19.43932898,1951.2,1950.8,10.20587241]
[1688350588564,19.43932898,1951.2,1950.9,0.00364655]
[1688350590986,19.43932898,1951.2,1950.9,5.12944655]
[1688350591126,11.75175898,1951.2,1950.9,5.12944655]
[1688350591476,9.81213816,1951.2,1950.9,5.12944655]
[1688350592876,14.93718816,1951.2,1950.9,5.12944655]
[1688350594507,0.01649128,1951.4,1951.1,0.92]
[1688350594643,7.0194,1951.6,1951.2,0.02882214]
[1688350594847,5.0,1951.6,1951.2,12.84144214]
[1688350595061,5.0,1951.6,1951.2,14.38184135]
[1688350595259,10.24794,1951.7,1951.2,14.35301921]
[1688350595480,5.12401,1951.6,1951.3,0.02323087]
[1688350595690,5.12401,1951.6,1951.4,5.12452]
[1688350596191,7.68274816,1951.7,1951.5,0.01555255]
[1688350596490,7.68274816,1951.7,1951.6,0.00357941]
[1688350596792,14.08720298,1951.7,1951.6,0.00357941]
[1688350596981,18.66846298,1951.7,1951.6,0.00357941]
[1688350597459,18.66846298,1951.7,1951.4,0.02042612]
[1688350597663,2.55878816,1951.6,1951.4,0.02042612]
[1688350597856,7.68285816,1951.6,1951.4,0.02042612]
[1688350598061,7.68285816,1951.6,1951.3,5.12461]
[1688350598483,7.68285816,1951.6,1951.4,0.01848909]
[1688350598682,7.68285816,1951.6,1951.4,0.00359859]
[1688350598683,7.393,1951.5,1951.4,0.00359859]
[1688350598885,23.63690816,1951.5,1951.4,0.00359859]
[1688350599203,26.19903816,1951.5,1951.4,0.00359859]
[1688350599368,33.08862944,1951.5,1951.4,0.00359859]
[1688350599569,33.08862944,1951.5,1950.9,0.02128551]
[1688350599751,6.7876511,1951.4,1950.9,0.02128551]
[1688350600106,12.81227,1951.3,1950.7,12.198284]
[1688350600255,10.25088,1951.1,1950.7,12.198284]
[1688350600450,10.25088,1951.1,1950.8,0.00351294]
[1688350600656,2.55878816,1951.0,1950.8,0.00351294]
[1688350600861,10.25166,1950.9,1950.8,0.00351294]
[1688350601068,5.12583,1950.9,1950.8,0.00351294]
[1688350601597,10.25166,1950.9,1950.8,0.00351294]
[1688350601892,5.12583,1950.9,1950.8,0.00351294]
[1688350602293,9.22159998,1951.0,1950.8,5.12961294]
[1688350602791,9.22159998,1951.0,1950.8,0.00351294]
[1688350602792,14.34717998,1951.0,1950.8,0.00351294]
[1688350607510,5.12536,1951.1,1950.8,0.00351294]
[1688350607723,5.12536,1951.1,1950.8,5.12951294]
[1688350608023,10.25077,1951.1,1950.8,5.12951294]
[1688350612223,5.12536,1951.1,1950.8,0.00351294]
[1688350612447,5.12536,1951.1,1950.8,11.17452294]
[1688350613112,10.25077,1951.1,1950.8,11.17452294]
[1688350613942,10.25077,1951.1,1950.9,0.01275745]
[1688350614117,10.25077,1951.1,1950.8,11.17452294]
[1688350614509,10.25077,1951.1,1950.8,6.04842294]
[1688350615759,5.1252,1951.2,1950.8,11.17452294]
[1688350616049,0.01649128,1951.3,1950.8,12.29782063]
[1688350616560,0.01649128,1951.3,1950.8,14.24522063]
[1688350620308,10.26619128,1951.3,1950.9,5.1257]
[1688350620510,10.26619128,1951.3,1950.9,5.12904047]
[1688350622211,12.82858128,1951.3,1950.9,5.12904047]
[1688350624233,12.82858128,1951.3,1951.0,0.01422537]
[1688350624531,12.82858128,1951.3,1951.1,0.0033213]
[1688350624719,14.32285941,1951.3,1951.1,0.0033213]
[1688350625552,14.32285941,1951.3,1951.0,0.01352698]
[1688350626273,14.32285941,1951.3,1950.9,5.1257]
[1688350626418,14.32285941,1951.3,1951.0,0.01698895]
[1688350626717,14.32285941,1951.3,1951.1,0.00348416]
[1688350626922,1.43228594,1951.2,1951.1,0.00348416]
[1688350627144,5.12505,1951.2,1951.1,0.00348416]
[1688350627556,5.12505,1951.2,1950.9,5.1257]
[1688350627749,7.68383816,1951.2,1950.9,5.1257]
[1688350627934,15.37140816,1951.2,1950.8,2.36558284]
[1688350628448,19.1889371,1951.2,1950.8,2.36558284]
[1688350628668,19.1889371,1951.2,1950.9,0.00334047]
[1688350629823,2.55878816,1951.1,1950.9,0.00334047]
[1688350630160,10.25114,1951.0,1950.9,0.00334047]
[1688350630738,5.12557,1951.0,1950.9,0.00334047]
[1688350631911,12.80964816,1951.1,1950.9,5.12917047]
[1688350632381,7.68419816,1951.1,1950.9,5.12917047]
[1688350640296,17.22672487,1951.1,1950.9,0.00334047]
[1688350640495,17.22672487,1951.1,1950.7,0.058454]
[1688350641522,17.22672487,1951.1,1950.8,0.00347197]
[1688350647963,0.915,1951.0,1950.8,0.00347197]
[1688350648259,12.81044816,1950.9,1950.8,0.00347197]
[1688350648567,14.34777698,1950.9,1950.8,0.00347197]
[1688350649559,16.91068698,1950.9,1950.8,0.00347197]
[1688350666785,22.30368698,1950.9,1950.8,0.00347197]
[1688350667128,31.32451698,1950.9,1950.8,0.00347197]
[1688350667588,31.32451698,1950.9,1950.7,0.058454]
[1688350667793,12.48423986,1950.8,1950.7,0.058454]
[1688350667985,25.29948986,1950.8,1950.7,0.058454]
[1688350668782,25.30665653,1950.8,1950.7,0.058454]
[1688350668981,25.29948986,1950.8,1950.7,0.058454]
[1688350669406,30.32138708,1950.8,1950.7,0.058454]
[1688350669725,30.31598114,1950.8,1950.7,0.058454]
[1688350670394,24.92298114,1950.8,1950.7,0.058454]
[1688350671114,29.39598114,1950.8,1950.7,0.058454]
[1688350671319,24.39598114,1950.8,1950.7,0.058454]
[1688350681322,29.39598114,1950.8,1950.7,0.058454]
[1688350683338,24.39598114,1950.8,1950.7,0.058454]
[1688350684409,16.42343986,1950.8,1950.7,0.058454]
[1688350684615,18.98648986,1950.8,1950.7,0.058454]
[1688350685024,15.94343986,1950.8,1950.7,0.058454]
[1688350685224,7.68488816,1950.8,1950.7,0.058454]
[1688350685506,7.68488816,1950.8,1950.7,0.06170773]
[1688350687527,5.0,1951.1,1950.7,0.97770773]
[1688350687713,5.0,1951.1,1950.9,0.92]
[1688350687932,5.12576,1951.0,1950.7,5.18794773]
[1688350688161,1.1,1950.9,1950.8,0.51879477]
[1688350688377,1.1,1950.9,1950.8,10.27929442]
[1688350688558,1.1,1950.9,1950.8,10.52318385]
[1688350688974,1.1,1950.9,1950.8,0.27098385]
[1688350689133,1.1,1950.9,1950.8,0.00324414]
[1688350690467,1.1,1950.9,1950.8,5.12934414]
[1688350690635,1.1,1950.9,1950.8,6.16075595]
[1688350690837,1.1,1950.9,1950.8,7.07675595]
[1688350691032,5.12542,1951.1,1950.8,12.20285595]
[1688350691237,7.68420816,1951.1,1951.0,0.918]
[1688350691610,7.68420816,1951.1,1951.0,0.92122495]
[1688350691968,5.12495,1951.3,1951.0,0.92122495]
[1688350692167,5.12495,1951.3,1951.1,0.92]
[1688350692168,7.68373816,1951.3,1951.1,0.92]
[1688350692557,7.68373816,1951.3,1951.2,0.00304291]
[1688350692763,7.68376816,1951.3,1951.2,0.00304291]
[1688350693333,12.80874816,1951.3,1951.2,0.00304291]
[1688350693556,7.68376816,1951.3,1951.1,0.92]
[1688350694544,7.68376816,1951.3,1951.2,0.00320576]
[1688350695708,7.68376816,1951.3,1951.1,0.92]
[1688350696679,7.68376816,1951.3,1951.2,0.00320576]
[1688350696996,2.55878816,1951.3,1951.2,0.00320576]
[1688350697163,7.68356816,1951.3,1951.2,0.00320576]
[1688350697587,7.68356816,1951.3,1951.1,0.92]
[1688350698575,7.68356816,1951.3,1951.2,0.00320576]
[1688350699569,7.68356816,1951.3,1951.1,0.92]
[1688350700674,7.68356816,1951.3,1951.2,0.00320576]
[1688350701801,12.80834816,1951.3,1951.1,0.92]
[1688350702003,12.80834816,1951.3,1951.0,0.01741706]
[1688350702004,12.80834816,1951.3,1951.0,0.93741706]
[1688350702378,12.80834816,1951.3,1951.0,0.92]
[1688350702693,12.80834816,1951.3,1951.1,0.00321536]
[1688350703307,14.84541298,1951.3,1951.1,0.00321536]
[1688350703607,17.40780298,1951.3,1951.1,0.00321536]
[1688350704864,15.37073816,1951.3,1951.1,0.00321536]
[1688350706479,2.55878816,1951.2,1951.1,0.00321536]
[1688350706810,15.37140816,1951.2,1951.1,0.00321536]
[1688350707570,15.37140816,1951.2,1950.9,1.418]
[1688350708605,15.37140816,1951.2,1951.0,0.00322495]
[1688350713440,12.80888816,1951.2,1951.0,0.00322495]
[1688350713644,15.37140816,1951.2,1951.0,0.00322495]
[1688350714001,16.90854898,1951.2,1951.0,0.00322495]
[1688350714207,14.34602898,1951.2,1951.0,0.00322495]
[1688350716905,9.22097898,1951.2,1951.0,0.00322495]
[1688350717844,14.34602898,1951.2,1951.0,0.00322495]
[1688350720326,12.80888816,1951.2,1951.0,0.00322495]
[1688350720527,7.68383816,1951.2,1951.0,0.00322495]
[1688350721569,12.80888816,1951.2,1951.0,0.00322495]
[1688350733262,15.37140816,1951.2,1951.0,0.00322495]
[1688350736170,17.21250816,1951.2,1951.0,0.00322495]
[1688350736374,1.72125082,1951.1,1951.0,0.00322495]
[1688350736567,17.09330898,1951.1,1950.7,7.493384]
[1688350736790,2.55878816,1951.0,1950.7,2.367054]
[1688350736987,10.25166,1950.9,1950.7,2.367054]
[1688350737187,10.25166,1950.9,1950.7,0.558454]
[1688350737401,10.25166,1950.9,1950.7,0.508454]
[1688350737563,10.25166,1950.9,1950.8,0.00324414]
[1688350738685,12.81457,1950.9,1950.8,0.00324414]
[1688350742097,10.25166,1950.9,1950.8,0.00324414]
[1688350743408,5.12583,1950.9,1950.8,0.00324414]
[1688350744496,5.12299663,1950.9,1950.8,0.00324414]
[1688350744867,10.24882663,1950.9,1950.8,0.00324414]
[1688350746863,10.24882663,1950.9,1950.7,0.41169814]
[1688350747676,10.24882663,1950.9,1950.8,0.00311936]
[1688350748920,10.24882663,1950.9,1950.7,0.32930606]
[1688350749617,10.24882663,1950.9,1950.8,0.00433245]
[1688350751215,10.14882663,1950.9,1950.8,0.00433245]
[1688350752113,5.02299663,1950.9,1950.8,0.00433245]
[1688350752817,10.14882663,1950.9,1950.8,0.00433245]
[1688350759921,12.71173663,1950.9,1950.8,0.00433245]
[1688350765424,16.79757727,1950.9,1950.8,0.00433245]
[1688350766498,18.55247727,1950.9,1950.8,0.00433245]
[1688350766704,18.55247727,1950.9,1950.3,32.93242206]
[1688350766705,22.11817121,1950.9,1950.3,30.56]
[1688350766902,22.11817121,1950.9,1950.1,4.77510606]
[1688350766903,2.55878816,1950.8,1950.1,4.77510606]
[1688350767122,12.81662,1950.6,1950.1,4.77510606]
[1688350767425,15.37540816,1950.6,1950.1,4.77510606]
[1688350767731,7.95178816,1950.5,1950.2,0.00449286]
[1688350767899,10.2543,1950.4,1950.2,0.00449286]
[1688350768105,2.55878816,1950.3,1950.2,0.00449286]
[1688350768436,12.81360816,1950.3,1950.2,0.00449286]
[1688350768586,12.81360816,1950.3,1950.0,6.12713957]
[1688350769609,12.81360816,1950.3,1950.1,0.00477324]
[1688350771789,7.68619816,1950.3,1950.1,0.00477324]
[1688350772277,0.01649128,1950.5,1950.1,10.26065324]
[1688350772456,2.55878816,1950.5,1950.2,0.92]
[1688350773436,5.12663,1950.6,1950.2,0.92]
[1688350773640,7.68541816,1950.6,1950.3,0.00474203]
[1688350773835,12.81221816,1950.6,1950.3,0.00474203]
[1688350774140,17.13013737,1950.6,1950.3,0.00474203]
[1688350774566,17.13013737,1950.6,1950.1,7.86169]
[1688350775474,17.13013737,1950.6,1950.1,2.7339]
[1688350775659,17.13013737,1950.6,1950.2,0.00475763]
[1688350776573,17.13013737,1950.6,1950.1,2.7339]
[1688350776762,15.37552816,1950.6,1950.1,4.25593561]
[1688350776974,15.37552816,1950.6,1950.2,0.92]
[1688350777175,12.81221816,1950.6,1950.2,0.92]
[1688350777719,5.12645,1950.7,1950.4,0.918]
[1688350777919,15.25196,1950.9,1950.4,5.12705]
[1688350778217,10.25241,1950.8,1950.4,1.02587773]
[1688350778693,10.25241,1950.8,1950.5,0.00471083]
[1688350779627,10.25241,1950.8,1950.3,5.12725]
[1688350780614,10.25241,1950.8,1950.4,0.00472643]
[1688350780821,12.81546,1950.8,1950.4,0.00472643]
[1688350781117,14.35288482,1950.8,1950.4,0.00472643]
[1688350781716,14.35288482,1950.8,1950.3,10.25457]
[1688350781976,12.81546,1950.8,1950.3,10.25457]
[1688350782616,12.81546,1950.8,1950.4,0.00472643]
[1688350782817,12.81546,1950.8,1950.4,0.92472643]
[1688350783853,15.37424816,1950.8,1950.4,0.00472643]
[1688350784711,17.12904816,1950.8,1950.2,6.37489606]
[1688350784911,19.03885298,1950.8,1950.2,6.37489606]
[1688350785528,19.03885298,1950.8,1950.3,0.00447728]
[1688350785928,2.55878816,1950.7,1950.3,0.00447728]
[1688350786153,10.25336,1950.6,1950.3,0.00447728]
[1688350786321,15.85545816,1950.6,1950.3,0.00447728]
[1688350786521,17.69732698,1950.6,1950.3,0.00447728]
[1688350787044,2.55878816,1950.5,1950.3,0.00447728]
[1688350787233,12.81787,1950.4,1950.3,0.00447728]
[1688350787438,15.37665816,1950.4,1950.3,0.00447728]
[1688350789319,12.81308816,1950.4,1950.3,0.00447728]
[1688350792610,14.35074398,1950.4,1950.3,0.00447728]
[1688350792813,17.39431398,1950.4,1950.3,0.00447728]
[1688350794026,14.83074398,1950.4,1950.3,0.00447728]
[1688350794228,13.29308816,1950.4,1950.3,0.00447728]
[1688350796887,15.85665816,1950.4,1950.3,0.00447728]
[1688350800636,15.85665816,1950.4,1950.0,0.25]
[1688350800843,3.03878816,1950.3,1950.0,0.25]
[1688350801046,12.81917,1950.2,1950.0,0.25]
[1688350801336,16.96375398,1950.2,1950.0,0.25]
[1688350801643,16.96375398,1950.2,1950.1,0.00446613]
[1688350801850,17.44375398,1950.2,1950.1,0.00446613]
[1688350810653,15.85795816,1950.2,1950.1,0.00446613]
[1688350811750,15.85795816,1950.2,1950.0,0.25]
[1688350812257,15.85795816,1950.2,1950.0,2.75]
[1688350812656,15.85795816,1950.2,1950.0,2.75670386]
[1688350815354,13.29412816,1950.2,1950.0,2.75670386]
[1688350815571,5.12753,1950.3,1950.0,7.88490386]
[1688350815712,7.68631816,1950.3,1950.0,7.88490386]
[1688350816417,7.68631816,1950.3,1950.0,2.75670386]
[1688350820666,7.68631816,1950.3,1950.0,2.75]
[1688350828491,12.81389816,1950.3,1950.0,2.75]
[1688350829570,12.81389816,1950.3,1950.0,2.75670386]
[1688350830674,12.81389816,1950.3,1950.0,2.75]
[1688350831596,12.81389816,1950.3,1950.0,2.75670386]
[1688350832792,12.81389816,1950.3,1950.0,2.75375151]
[1688350836517,5.12753,1950.3,1950.0,2.75375151]
[1688350836712,5.0,1950.5,1950.1,0.919]
[1688350837032,7.55878816,1950.5,1950.2,5.12764]
[1688350837360,2.55878816,1950.5,1950.2,5.12764]
[1688350837599,2.55878816,1950.5,1950.3,0.00355858]
[1688350837764,2.55878816,1950.5,1950.3,0.01881777]
[1688350837963,2.55878816,1950.5,1950.3,0.00355858]
[1688350838377,2.55878816,1950.5,1950.3,0.02247587]
[1688350838788,2.55878816,1950.5,1950.3,0.00355858]
[1688350839104,2.50878816,1950.5,1950.3,0.02169687]
[1688350839581,6.7011,1950.7,1950.3,0.53663056]
[1688350839782,2.55878816,1950.6,1950.3,0.86593662]
[1688350840087,7.55878816,1950.7,1950.3,0.86593662]
[1688350840289,12.68515816,1950.7,1950.3,0.86593662]
[1688350840610,7.68515816,1950.7,1950.3,0.86593662]
[1688350840820,7.68515816,1950.7,1950.4,0.92]
[1688350841173,7.68515816,1950.7,1950.5,0.01893674]
[1688350841596,7.68515816,1950.7,1950.6,0.00352962]
[1688350842271,2.55878816,1950.7,1950.6,0.00352962]
[1688350844006,7.68514816,1950.7,1950.6,0.00352962]
[1688350844867,12.81150816,1950.7,1950.6,0.00352962]
[1688350845574,12.81150816,1950.7,1950.4,0.01893674]
[1688350846419,12.81150816,1950.7,1950.4,6.06505674]
[1688350846420,2.55878816,1950.7,1950.4,6.06505674]
[1688350846606,2.55878816,1950.7,1950.5,0.61004494]
[1688350847006,2.55878816,1950.7,1950.5,0.62804986]
[1688350847206,2.55878816,1950.7,1950.5,0.61004494]
[1688350847405,2.55878816,1950.7,1950.5,0.62879894]
[1688350848014,2.55878816,1950.7,1950.5,0.02229327]
[1688350848212,2.55878816,1950.7,1950.5,5.14917327]
[1688350848524,2.55878816,1950.7,1950.5,6.05041927]
[1688350849509,2.55878816,1950.7,1950.5,6.0663474]
[1688350850299,2.55878816,1950.7,1950.5,0.9394674]
[1688350850504,2.55878816,1950.7,1950.5,6.05041927]
[1688350850727,1.8082,1950.9,1950.5,7.49747226]
[1688350851024,5.0,1951.0,1950.7,8.93772606]
[1688350851230,10.1256,1951.0,1950.7,5.45554606]
[1688350851391,5.1256,1951.0,1950.7,5.45554606]
[1688350851592,5.1256,1951.0,1950.8,0.00351033]
[1688350855026,5.12545,1951.1,1950.8,5.12961033]
[1688350855191,13.85486,1951.2,1950.8,12.48422497]
[1688350855192,6.7518,1951.2,1950.8,12.48422497]
[1688350855534,4.31058816,1951.2,1950.8,12.48422497]
[1688350856028,4.31058816,1951.2,1950.8,7.35812497]
[1688350856433,4.31058816,1951.2,1950.8,6.04961033]
[1688350857717,2.55878816,1951.2,1950.9,0.32930606]
[1688350857927,2.55878816,1951.2,1951.0,6.04357]
[1688350858106,5.0,1951.3,1951.0,0.918]
[1688350858306,5.12482,1951.3,1951.0,0.918]
[1688350858493,5.12482,1951.3,1950.9,6.37508606]
[1688350858693,10.24964,1951.3,1951.1,0.00348139]
[1688350859122,2.55878816,1951.2,1951.1,0.00348139]
[1688350859323,7.68383816,1951.2,1951.1,0.00348139]
[1688350859633,7.68383816,1951.2,1950.9,10.58081606]
[1688350860212,7.68383816,1951.2,1950.9,11.49781606]
[1688350860514,7.68383816,1951.2,1950.9,6.37198606]
[1688350860725,7.68383816,1951.2,1951.0,0.00349104]
[1688350861926,7.68383816,1951.2,1951.0,5.12906104]
[1688350864246,7.68383816,1951.2,1951.0,0.00349104]
[1688350864451,7.68383816,1951.2,1951.0,5.12906104]
[1688350864621,7.68383816,1951.2,1951.0,0.00349104]
[1688350864942,9.46470398,1951.2,1951.0,0.00349104]
[1688350865145,14.58975398,1951.2,1951.0,0.00349104]
[1688350865824,14.58975398,1951.2,1951.0,5.12900104]
[1688350866848,10.38470398,1951.2,1951.0,0.00349104]
[1688350867016,1.0384704,1951.1,1951.0,0.00349104]
[1688350867212,8.72256856,1951.1,1951.0,0.00349104]
[1688350867413,22.28352856,1951.1,1951.0,0.00349104]
[1688350867628,22.28352856,1951.1,1950.7,2.5]
[1688350867917,3.03878816,1951.0,1950.7,2.5]
[1688350868116,13.11844882,1950.9,1950.7,2.5]
[1688350868324,2.55878816,1950.8,1950.7,2.5]
[1688350868538,7.68488816,1950.8,1950.7,2.5]